{"text_format":"1","workbook":"xlsx","n_sheets":3,"sheets":["данные по заявкам","среднее","Список"],"not_rendered":{"charts":0,"images":0,"macros":1,"external_links":0,"defined_names":36,"comments":0,"pivot_tables":0},"unopened":[],"bounds":{"document_bytes":16777216,"sheet_cells":100000,"rows_first":2000,"rows_last":500,"rows_between":2000,"halvings":0,"cell_chars":16384,"cell_head_chars":4096},"cells_cut":0,"cells_raw":0,"read":"whole","date_system":"1900"}

{"sheet":"данные по заявкам","index":0,"n_rows":34,"n_cols":9,"rows_kept":34,"cut":false,"hidden":false,"merged":[]}
[]
["Дата","месяц","Машина","Столбец2","Столбец1","Ф.И.О.1","Метраж, м"]
["2011-09-01",{"$f":"MONTH(Таблица1[[#This Row],[Дата]])","v":9},"б3",{"$f":"Таблица1[[#This Row],[Машина]]&Таблица1[[#This Row],[Ф.И.О.1]]","v":"б3Буждыган"},{"$f":"IF(COUNTIF(F$1:F3,F3)=1,MAX(E$1:E2)+1,\"\")","v":1},"Буждыган",10760]
["2011-09-01",{"$f":"MONTH(Таблица1[[#This Row],[Дата]])","v":9},"б3",{"$f":"Таблица1[[#This Row],[Машина]]&Таблица1[[#This Row],[Ф.И.О.1]]","v":"б3Буждыган"},{"$f":"IF(COUNTIF(F$1:F4,F4)=1,MAX(E$1:E3)+1,\"\")","v":""},"Буждыган",6880]
["2011-09-01",{"$f":"MONTH(Таблица1[[#This Row],[Дата]])","v":9},"б3",{"$f":"Таблица1[[#This Row],[Машина]]&Таблица1[[#This Row],[Ф.И.О.1]]","v":"б3Буждыган"},{"$f":"IF(COUNTIF(F$1:F5,F5)=1,MAX(E$1:E4)+1,\"\")","v":""},"Буждыган",16100]
["2011-09-01",{"$f":"MONTH(Таблица1[[#This Row],[Дата]])","v":9},"б4",{"$f":"Таблица1[[#This Row],[Машина]]&Таблица1[[#This Row],[Ф.И.О.1]]","v":"б4Невоенный"},{"$f":"IF(COUNTIF(F$1:F6,F6)=1,MAX(E$1:E5)+1,\"\")","v":2},"Невоенный",4600]
["2011-09-01",{"$f":"MONTH(Таблица1[[#This Row],[Дата]])","v":9},"б4",{"$f":"Таблица1[[#This Row],[Машина]]&Таблица1[[#This Row],[Ф.И.О.1]]","v":"б4Невоенный"},{"$f":"IF(COUNTIF(F$1:F7,F7)=1,MAX(E$1:E6)+1,\"\")","v":""},"Невоенный",6000]
["2011-09-01",{"$f":"MONTH(Таблица1[[#This Row],[Дата]])","v":9},"б4",{"$f":"Таблица1[[#This Row],[Машина]]&Таблица1[[#This Row],[Ф.И.О.1]]","v":"б4Невоенный"},{"$f":"IF(COUNTIF(F$1:F8,F8)=1,MAX(E$1:E7)+1,\"\")","v":""},"Невоенный",2000]
["2011-09-01",{"$f":"MONTH(Таблица1[[#This Row],[Дата]])","v":9},"б4",{"$f":"Таблица1[[#This Row],[Машина]]&Таблица1[[#This Row],[Ф.И.О.1]]","v":"б4Невоенный"},{"$f":"IF(COUNTIF(F$1:F9,F9)=1,MAX(E$1:E8)+1,\"\")","v":""},"Невоенный",400]
["2011-09-02",{"$f":"MONTH(Таблица1[[#This Row],[Дата]])","v":9},"б4",{"$f":"Таблица1[[#This Row],[Машина]]&Таблица1[[#This Row],[Ф.И.О.1]]","v":"б4Буждыган"},{"$f":"IF(COUNTIF(F$1:F10,F10)=1,MAX(E$1:E9)+1,\"\")","v":""},"Буждыган",19920]
["2011-09-02",{"$f":"MONTH(Таблица1[[#This Row],[Дата]])","v":9},"б4",{"$f":"Таблица1[[#This Row],[Машина]]&Таблица1[[#This Row],[Ф.И.О.1]]","v":"б4Буждыган"},{"$f":"IF(COUNTIF(F$1:F11,F11)=1,MAX(E$1:E10)+1,\"\")","v":""},"Буждыган",26050]
["2011-09-02",{"$f":"MONTH(Таблица1[[#This Row],[Дата]])","v":9},"б4",{"$f":"Таблица1[[#This Row],[Машина]]&Таблица1[[#This Row],[Ф.И.О.1]]","v":"б4Буждыган"},{"$f":"IF(COUNTIF(F$1:F12,F12)=1,MAX(E$1:E11)+1,\"\")","v":""},"Буждыган",8560]
["2011-09-02",{"$f":"MONTH(Таблица1[[#This Row],[Дата]])","v":9},"б2",{"$f":"Таблица1[[#This Row],[Машина]]&Таблица1[[#This Row],[Ф.И.О.1]]","v":"б2Шилов"},{"$f":"IF(COUNTIF(F$1:F13,F13)=1,MAX(E$1:E12)+1,\"\")","v":3},"Шилов",13740]
["2011-09-02",{"$f":"MONTH(Таблица1[[#This Row],[Дата]])","v":9},"б2",{"$f":"Таблица1[[#This Row],[Машина]]&Таблица1[[#This Row],[Ф.И.О.1]]","v":"б2Шилов"},{"$f":"IF(COUNTIF(F$1:F14,F14)=1,MAX(E$1:E13)+1,\"\")","v":""},"Шилов",14000]
["2011-09-02",{"$f":"MONTH(Таблица1[[#This Row],[Дата]])","v":9},"б2",{"$f":"Таблица1[[#This Row],[Машина]]&Таблица1[[#This Row],[Ф.И.О.1]]","v":"б2Шилов"},{"$f":"IF(COUNTIF(F$1:F15,F15)=1,MAX(E$1:E14)+1,\"\")","v":""},"Шилов",13500]
["2011-09-02",{"$f":"MONTH(Таблица1[[#This Row],[Дата]])","v":9},"б1",{"$f":"Таблица1[[#This Row],[Машина]]&Таблица1[[#This Row],[Ф.И.О.1]]","v":"б1Лях"},{"$f":"IF(COUNTIF(F$1:F16,F16)=1,MAX(E$1:E15)+1,\"\")","v":4},"Лях",7100,null,"столбцы D и E можно удалить -это я мудрила!"]
["2011-09-15",{"$f":"MONTH(Таблица1[[#This Row],[Дата]])","v":9},"б1",{"$f":"Таблица1[[#This Row],[Машина]]&Таблица1[[#This Row],[Ф.И.О.1]]","v":"б1Ракитин"},{"$f":"IF(COUNTIF(F$1:F17,F17)=1,MAX(E$1:E16)+1,\"\")","v":5},"Ракитин",6750]
["2011-09-15",{"$f":"MONTH(Таблица1[[#This Row],[Дата]])","v":9},"б2",{"$f":"Таблица1[[#This Row],[Машина]]&Таблица1[[#This Row],[Ф.И.О.1]]","v":"б2Саморока"},{"$f":"IF(COUNTIF(F$1:F18,F18)=1,MAX(E$1:E17)+1,\"\")","v":6},"Саморока",15060]
["2011-09-15",{"$f":"MONTH(Таблица1[[#This Row],[Дата]])","v":9},"б2",{"$f":"Таблица1[[#This Row],[Машина]]&Таблица1[[#This Row],[Ф.И.О.1]]","v":"б2Саморока"},{"$f":"IF(COUNTIF(F$1:F19,F19)=1,MAX(E$1:E18)+1,\"\")","v":""},"Саморока",7290]
["2011-09-15",{"$f":"MONTH(Таблица1[[#This Row],[Дата]])","v":9},"б2",{"$f":"Таблица1[[#This Row],[Машина]]&Таблица1[[#This Row],[Ф.И.О.1]]","v":"б2Саморока"},{"$f":"IF(COUNTIF(F$1:F20,F20)=1,MAX(E$1:E19)+1,\"\")","v":""},"Саморока",14750]
["2011-09-15",{"$f":"MONTH(Таблица1[[#This Row],[Дата]])","v":9},"б4",{"$f":"Таблица1[[#This Row],[Машина]]&Таблица1[[#This Row],[Ф.И.О.1]]","v":"б4Невоенный"},{"$f":"IF(COUNTIF(F$1:F21,F21)=1,MAX(E$1:E20)+1,\"\")","v":""},"Невоенный",13160]
["2011-09-15",{"$f":"MONTH(Таблица1[[#This Row],[Дата]])","v":9},"б4",{"$f":"Таблица1[[#This Row],[Машина]]&Таблица1[[#This Row],[Ф.И.О.1]]","v":"б4Невоенный"},{"$f":"IF(COUNTIF(F$1:F22,F22)=1,MAX(E$1:E21)+1,\"\")","v":""},"Невоенный",3250]
["2011-09-15",{"$f":"MONTH(Таблица1[[#This Row],[Дата]])","v":9},"б4",{"$f":"Таблица1[[#This Row],[Машина]]&Таблица1[[#This Row],[Ф.И.О.1]]","v":"б4Невоенный"},{"$f":"IF(COUNTIF(F$1:F23,F23)=1,MAX(E$1:E22)+1,\"\")","v":""},"Невоенный",5660]
["2011-09-14",{"$f":"MONTH(Таблица1[[#This Row],[Дата]])","v":9},"б4",{"$f":"Таблица1[[#This Row],[Машина]]&Таблица1[[#This Row],[Ф.И.О.1]]","v":"б4Белов"},{"$f":"IF(COUNTIF(F$1:F24,F24)=1,MAX(E$1:E23)+1,\"\")","v":7},"Белов",2000]
["2011-09-14",{"$f":"MONTH(Таблица1[[#This Row],[Дата]])","v":9},"б4",{"$f":"Таблица1[[#This Row],[Машина]]&Таблица1[[#This Row],[Ф.И.О.1]]","v":"б4Белов"},{"$f":"IF(COUNTIF(F$1:F25,F25)=1,MAX(E$1:E24)+1,\"\")","v":""},"Белов",2300]
["2011-09-14",{"$f":"MONTH(Таблица1[[#This Row],[Дата]])","v":9},"б1",{"$f":"Таблица1[[#This Row],[Машина]]&Таблица1[[#This Row],[Ф.И.О.1]]","v":"б1Кротенко"},{"$f":"IF(COUNTIF(F$1:F26,F26)=1,MAX(E$1:E25)+1,\"\")","v":8},"Кротенко",24150]
["2011-09-14",{"$f":"MONTH(Таблица1[[#This Row],[Дата]])","v":9},"б1",{"$f":"Таблица1[[#This Row],[Машина]]&Таблица1[[#This Row],[Ф.И.О.1]]","v":"б1Кротенко"},{"$f":"IF(COUNTIF(F$1:F27,F27)=1,MAX(E$1:E26)+1,\"\")","v":""},"Кротенко",5150]
["2011-09-14",{"$f":"MONTH(Таблица1[[#This Row],[Дата]])","v":9},"б1",{"$f":"Таблица1[[#This Row],[Машина]]&Таблица1[[#This Row],[Ф.И.О.1]]","v":"б1Кротенко"},{"$f":"IF(COUNTIF(F$1:F28,F28)=1,MAX(E$1:E27)+1,\"\")","v":""},"Кротенко",1000]
["2011-09-14",{"$f":"MONTH(Таблица1[[#This Row],[Дата]])","v":9},"б1",{"$f":"Таблица1[[#This Row],[Машина]]&Таблица1[[#This Row],[Ф.И.О.1]]","v":"б1Кротенко"},{"$f":"IF(COUNTIF(F$1:F29,F29)=1,MAX(E$1:E28)+1,\"\")","v":""},"Кротенко",7000]
["2011-09-14",{"$f":"MONTH(Таблица1[[#This Row],[Дата]])","v":9},"б1",{"$f":"Таблица1[[#This Row],[Машина]]&Таблица1[[#This Row],[Ф.И.О.1]]","v":"б1Кротенко"},{"$f":"IF(COUNTIF(F$1:F30,F30)=1,MAX(E$1:E29)+1,\"\")","v":""},"Кротенко",6000]
["2011-09-14",{"$f":"MONTH(Таблица1[[#This Row],[Дата]])","v":9},"б2",{"$f":"Таблица1[[#This Row],[Машина]]&Таблица1[[#This Row],[Ф.И.О.1]]","v":"б2Токарев"},{"$f":"IF(COUNTIF(F$1:F31,F31)=1,MAX(E$1:E30)+1,\"\")","v":9},"Токарев",5200]
["2011-09-14",{"$f":"MONTH(Таблица1[[#This Row],[Дата]])","v":9},"б1",{"$f":"Таблица1[[#This Row],[Машина]]&Таблица1[[#This Row],[Ф.И.О.1]]","v":"б1Лях"},{"$f":"IF(COUNTIF(F$1:F32,F32)=1,MAX(E$1:E31)+1,\"\")","v":""},"Лях",13110]
["2011-09-14",{"$f":"MONTH(Таблица1[[#This Row],[Дата]])","v":9},"б4",{"$f":"Таблица1[[#This Row],[Машина]]&Таблица1[[#This Row],[Ф.И.О.1]]","v":"б4Кудрявцев"},{"$f":"IF(COUNTIF(F$1:F33,F33)=1,MAX(E$1:E32)+1,\"\")","v":10},"Кудрявцев",9860]
["2011-09-14",{"$f":"MONTH(Таблица1[[#This Row],[Дата]])","v":9},"б4",{"$f":"Таблица1[[#This Row],[Машина]]&Таблица1[[#This Row],[Ф.И.О.1]]","v":"б4Кудрявцев"},{"$f":"IF(COUNTIF(F$1:F34,F34)=1,MAX(E$1:E33)+1,\"\")","v":""},"Кудрявцев",8610]

{"sheet":"среднее","index":1,"n_rows":13,"n_cols":4,"rows_kept":13,"cut":false,"hidden":false,"merged":[]}
["машина:","б2"]
["с","2011-09-02","по","2011-09-15"]
["Ф.И.О.","метраж","кол-во смен","среднее"]
[{"$f":"INDEX('данные по заявкам'!$F$3:$F$34,SMALL(IF(COUNTIF(среднее!$A$3:A3,'данные по заявкам'!$F$3:$F$34)=0,ROW('данные по заявкам'!$F$2:$F$33)),1))","v":"Буждыган"},{"$f":"SUMIFS('данные по заявкам'!$G$3:$G$34,'данные по заявкам'!$A$3:$A$34,\">=\"&$B$2,'данные по заявкам'!$A$3:$A$34,\"<=\"&$D$2,'данные по заявкам'!$F$3:$F$34,среднее!$A4,'данные по заявкам'!$C$3:$C$34,среднее!$B$1)","v":0},1,{"$f":"SUMIFS('данные по заявкам'!$G$3:$G$34,'данные по заявкам'!$A$3:$A$34,\">=\"&$B$2,'данные по заявкам'!$A$3:$A$34,\"<=\"&$D$2,'данные по заявкам'!$F$3:$F$34,среднее!$A4,'данные по заявкам'!$C$3:$C$34,среднее!$D$3)","v":0}]
[{"$f":"INDEX('данные по заявкам'!$F$3:$F$34,SMALL(IF(COUNTIF(среднее!$A$3:A4,'данные по заявкам'!$F$3:$F$34)=0,ROW('данные по заявкам'!$F$2:$F$33)),1))","v":"Невоенный"},{"$f":"SUMIFS('данные по заявкам'!$G$3:$G$34,'данные по заявкам'!$A$3:$A$34,\">=\"&$B$2,'данные по заявкам'!$A$3:$A$34,\"<=\"&$D$2,'данные по заявкам'!$F$3:$F$34,среднее!$A5,'данные по заявкам'!$C$3:$C$34,среднее!$B$1)","v":0},1,{"$f":"SUMIFS('данные по заявкам'!$G$3:$G$34,'данные по заявкам'!$A$3:$A$34,\">=\"&$B$2,'данные по заявкам'!$A$3:$A$34,\"<=\"&$D$2,'данные по заявкам'!$F$3:$F$34,среднее!$A5,'данные по заявкам'!$C$3:$C$34,среднее!$D$3)","v":0}]
[{"$f":"INDEX('данные по заявкам'!$F$3:$F$34,SMALL(IF(COUNTIF(среднее!$A$3:A5,'данные по заявкам'!$F$3:$F$34)=0,ROW('данные по заявкам'!$F$2:$F$33)),1))","v":"Шилов"},{"$f":"SUMIFS('данные по заявкам'!$G$3:$G$34,'данные по заявкам'!$A$3:$A$34,\">=\"&$B$2,'данные по заявкам'!$A$3:$A$34,\"<=\"&$D$2,'данные по заявкам'!$F$3:$F$34,среднее!$A6,'данные по заявкам'!$C$3:$C$34,среднее!$B$1)","v":41240},1,{"$f":"SUMIFS('данные по заявкам'!$G$3:$G$34,'данные по заявкам'!$A$3:$A$34,\">=\"&$B$2,'данные по заявкам'!$A$3:$A$34,\"<=\"&$D$2,'данные по заявкам'!$F$3:$F$34,среднее!$A6,'данные по заявкам'!$C$3:$C$34,среднее!$D$3)","v":0}]
[{"$f":"INDEX('данные по заявкам'!$F$3:$F$34,SMALL(IF(COUNTIF(среднее!$A$3:A6,'данные по заявкам'!$F$3:$F$34)=0,ROW('данные по заявкам'!$F$2:$F$33)),1))","v":"Ракитин"},{"$f":"SUMIFS('данные по заявкам'!$G$3:$G$34,'данные по заявкам'!$A$3:$A$34,\">=\"&$B$2,'данные по заявкам'!$A$3:$A$34,\"<=\"&$D$2,'данные по заявкам'!$F$3:$F$34,среднее!$A7,'данные по заявкам'!$C$3:$C$34,среднее!$B$1)","v":0},1,{"$f":"SUMIFS('данные по заявкам'!$G$3:$G$34,'данные по заявкам'!$A$3:$A$34,\">=\"&$B$2,'данные по заявкам'!$A$3:$A$34,\"<=\"&$D$2,'данные по заявкам'!$F$3:$F$34,среднее!$A7,'данные по заявкам'!$C$3:$C$34,среднее!$D$3)","v":0}]
[{"$f":"INDEX('данные по заявкам'!$F$3:$F$34,SMALL(IF(COUNTIF(среднее!$A$3:A7,'данные по заявкам'!$F$3:$F$34)=0,ROW('данные по заявкам'!$F$2:$F$33)),1))","v":"Ракитин"},{"$f":"SUMIFS('данные по заявкам'!$G$3:$G$34,'данные по заявкам'!$A$3:$A$34,\">=\"&$B$2,'данные по заявкам'!$A$3:$A$34,\"<=\"&$D$2,'данные по заявкам'!$F$3:$F$34,среднее!$A8,'данные по заявкам'!$C$3:$C$34,среднее!$B$1)","v":0},1,{"$f":"SUMIFS('данные по заявкам'!$G$3:$G$34,'данные по заявкам'!$A$3:$A$34,\">=\"&$B$2,'данные по заявкам'!$A$3:$A$34,\"<=\"&$D$2,'данные по заявкам'!$F$3:$F$34,среднее!$A8,'данные по заявкам'!$C$3:$C$34,среднее!$D$3)","v":0}]
[{"$f":"INDEX('данные по заявкам'!$F$3:$F$34,SMALL(IF(COUNTIF(среднее!$A$3:A8,'данные по заявкам'!$F$3:$F$34)=0,ROW('данные по заявкам'!$F$2:$F$33)),1))","v":"Ракитин"},{"$f":"SUMIFS('данные по заявкам'!$G$3:$G$34,'данные по заявкам'!$A$3:$A$34,\">=\"&$B$2,'данные по заявкам'!$A$3:$A$34,\"<=\"&$D$2,'данные по заявкам'!$F$3:$F$34,среднее!$A9,'данные по заявкам'!$C$3:$C$34,среднее!$B$1)","v":0},1,{"$f":"SUMIFS('данные по заявкам'!$G$3:$G$34,'данные по заявкам'!$A$3:$A$34,\">=\"&$B$2,'данные по заявкам'!$A$3:$A$34,\"<=\"&$D$2,'данные по заявкам'!$F$3:$F$34,среднее!$A9,'данные по заявкам'!$C$3:$C$34,среднее!$D$3)","v":0}]
["Требуется, из листа \"данныепо заявкам\", перенести те фамилии, которые отвечают условиям:",null,"\"кол-во смен\" проставить на основании тех же условий!"]
["1)по дате в промежутке  с  (ячейка В2)   по  (ячейка D2)",null,"1)по дате в промежутке  с  (ячейка В2)   по  (ячейка D2)"]
["2) ФИО выбираются только те, которые работали на \"машине\"  (ячейка В1)",null,"2) ФИО выбираются только те, которые работали на \"машине\"  (ячейка В1)"]
["3) при смене \"машины\" , б1, б2, б3, б4, б5 (выпадающий список, ячейка B2) список изненялся, в сответствии…",null,"3) при смене \"машины\" , б1, б2, б3, б4, б5 (выпадающий список, ячейка B2) список изненялся, в сответствии…"]

{"sheet":"Список","index":2,"n_rows":77,"n_cols":12,"rows_kept":77,"cut":false,"hidden":false,"merged":[]}
["Смена","Смена","участок","для \"данных\"","печать","бабинорезка","склейка","тест","рубка","экструзия","Ф.И.О.","код простоя"]
["а","день","печать","рото 7+1","рото 7+1","б1","стенфорд","т1","Р1","с1","Алфеев",1.1000000000000001]
["б","ночь","бабинорезка","рото 8","рото 8","б2","склейка 1","т2","Р2","с2","Анферов",1.2]
["в",null,"склейка","рото 8N","рото 8N","б3","склейка 2","т3","Р3","с3","Астапов",1.3]
["г",null,"тест","рото мек","рото мек","б4","склейка 3","т4","Р4","м1","Афанасьев",3.2]
[null,null,"рубка","б1",null,"б5",null,"т5","Р5","м2","Баранов",3.3]
[null,null,"экструзия","б2",null,null,null,"т6","Р6",null,"Белов",3.4]
[null,null,null,"б3",null,null,null,null,null,null,"Болдырев",3.15]
[null,null,null,"б4",null,null,null,null,null,null,"Боронин"]
[null,null,null,"б5",null,null,null,null,null,null,"Буждыган"]
[null,null,null,"склейка",null,null,null,null,null,null,"Бунгардайтес"]
[null,null,null,"тест",null,null,null,null,null,null,"Бурцев"]
[null,null,null,"с1",null,null,null,null,null,null,"Вайровский"]
[null,null,null,"с2",null,null,null,null,null,null,"Вельямидов"]
[null,null,null,"с3",null,null,null,null,null,null,"Веселов"]
[null,null,null,"м1",null,null,null,null,null,null,"Виноградов"]
[null,null,null,"м2",null,null,null,null,null,null,"Гусаров"]
[null,null,null,null,null,null,null,null,null,null,"Дудин"]
[null,null,null,null,null,null,null,null,null,null,"Жуков"]
[null,null,null,null,null,null,null,null,null,null,"Зайцев"]
[null,null,null,null,null,null,null,null,null,null,"Иванов"]
[null,null,null,null,null,null,null,null,null,null,"Иванов Д."]
[null,null,null,null,null,null,null,null,null,null,"Игнатьев"]
[null,null,null,null,null,null,null,null,null,null,"Канжоджаев"]
[null,null,null,null,null,null,null,null,null,null,"Кирьянов"]
[null,null,null,null,null,null,null,null,null,null,"Клеймёнов"]
[null,null,null,null,null,null,null,null,null,null,"Клочков"]
[null,null,null,null,null,null,null,null,null,null,"Клюмко"]
[null,null,null,null,null,null,null,null,null,null,"Козлов"]
[null,null,null,null,null,null,null,null,null,null,"Колесник"]
[null,null,null,null,null,null,null,null,null,null,"Косарев"]
[null,null,null,null,null,null,null,null,null,null,"Кротенко"]
[null,null,null,null,null,null,null,null,null,null,"Кудрявцев"]
[null,null,null,null,null,null,null,null,null,null,"Кудряшов"]
[null,null,null,null,null,null,null,null,null,null,"Кузнецов"]
[null,null,null,null,null,null,null,null,null,null,"Кулагин"]
[null,null,null,null,null,null,null,null,null,null,"Курилов"]
[null,null,null,null,null,null,null,null,null,null,"Кустиков"]
[null,null,null,null,null,null,null,null,null,null,"Латков"]
[null,null,null,null,null,null,null,null,null,null,"Лямин"]
[null,null,null,null,null,null,null,null,null,null,"Лях"]
[null,null,null,null,null,null,null,null,null,null,"Малетин"]
[null,null,null,null,null,null,null,null,null,null,"Метёлкин"]
[null,null,null,null,null,null,null,null,null,null,"Метельков"]
[null,null,null,null,null,null,null,null,null,null,"Митрухов"]
[null,null,null,null,null,null,null,null,null,null,"Морозов"]
[null,null,null,null,null,null,null,null,null,null,"Мудрагелов"]
[null,null,null,null,null,null,null,null,null,null,"Мухлаев"]
[null,null,null,null,null,null,null,null,null,null,"Невоенный"]
[null,null,null,null,null,null,null,null,null,null,"Никифоров"]
[null,null,null,null,null,null,null,null,null,null,"Очекуров"]
[null,null,null,null,null,null,null,null,null,null,"Пегонен"]
[null,null,null,null,null,null,null,null,null,null,"Персон"]
[null,null,null,null,null,null,null,null,null,null,"Петров"]
[null,null,null,null,null,null,null,null,null,null,"Плякин"]
[null,null,null,null,null,null,null,null,null,null,"Погодкин"]
[null,null,null,null,null,null,null,null,null,null,"Пронин"]
[null,null,null,null,null,null,null,null,null,null,"Ракитин"]
[null,null,null,null,null,null,null,null,null,null,"Рется"]
[null,null,null,null,null,null,null,null,null,null,"Самоваров"]
[null,null,null,null,null,null,null,null,null,null,"Саморока"]
[null,null,null,null,null,null,null,null,null,null,"Санджиев"]
[null,null,null,null,null,null,null,null,null,null,"Свиридов"]
[null,null,null,null,null,null,null,null,null,null,"Серебряков"]
[null,null,null,null,null,null,null,null,null,null,"Сиротин"]
[null,null,null,null,null,null,null,null,null,null,"Скрипник"]
[null,null,null,null,null,null,null,null,null,null,"Соколов"]
[null,null,null,null,null,null,null,null,null,null,"Страх"]
[null,null,null,null,null,null,null,null,null,null,"Струсь"]
[null,null,null,null,null,null,null,null,null,null,"Субботин"]
[null,null,null,null,null,null,null,null,null,null,"Суханов"]
[null,null,null,null,null,null,null,null,null,null,"Токарев"]
[null,null,null,null,null,null,null,null,null,null,"Третьяков"]
[null,null,null,null,null,null,null,null,null,null,"Челак"]
[null,null,null,null,null,null,null,null,null,null,"Шилов"]
[null,null,null,null,null,null,null,null,null,null,"Шункаров"]
[null,null,null,null,null,null,null,null,null,null,"Юрко"]